Cogmind - Beta 13 @@@ ROGUE MODE // 2024.06.14 @ 02:44:18 Player: annull Result: Destroyed by R2-C1M(R) with Subdweller Beam Cannon Performance ------------- Evolutions (0) 0 Regions Visited (3) 600 Robots Destroyed (12) 60 Value Destroyed (383) 383 Prototype IDs (0) 0 Alien Tech Used (0) 0 Bonus (34) 34 TOTAL SCORE: 1077 Bonus ------- Follower Combat Kills 50 Friendly Fire -16 Cogmind --------- Core Integrity 0/250 Matter 270/300 Energy 100/100 System Corruption 3% Temperature Cool (9) Movement Walking (120) Location -10/Subcaves Parts ------- > --- POWER (1) -------- (None) > --- PROPULSION (2) --- Aluminum Leg Aluminum Leg > --- UTILITY (2) ------ Small Storage Unit Structural Scanner > --- WEAPON (2) ------- Grenade Launcher Hammer > --- INVENTORY (8) ---- Subdweller Optics Sensor Array Seismic Detector Propulsion Shielding Scrap Shield Small Laser Welding Torch Peak State ------------ > --- POWER ------------ Light Ion Engine > --- PROPULSION ------- Wheel Compact Wheel > --- UTILITY ---------- Small Storage Unit Structural Scanner > --- WEAPON ----------- Small Laser Heavy Assault Rifle > --- INVENTORY -------- Light Treads Aluminum Leg Aluminum Leg Propulsion Shielding Weapon Shielding Grenade Launcher Mining Laser [Rating: 8] Favorites ----------- Power Light Ion Engine Engine Light Ion Engine Propulsion Compact Wheel Leg Aluminum Leg Wheel Compact Wheel Utility Small Storage Unit Device Structural Scanner Storage Small Storage Unit Weapon Small Laser Energy Gun Small Laser Ballistic Gun Heavy Assault Rifle Launcher Grenade Launcher Special Weapon Mining Laser Impact Weapon Hammer Build | -11 -10 -10 -10 ------- Run | Yrd Mat Min Sub Slots Evolved . | . . . . Power . | . . . . Propulsion . | . . . . Utility . | . . . . Weapon . | . . . . Parts Attached 17 | 5 2 10 . Power 2 | 1 . 1 . Engine 2 | 1 . 1 . Core . | . . . . Reactor . | . . . . Propulsion 4 | 2 . 2 . Treads . | . . . . Leg 2 | . . 2 . Wheel 2 | 2 . . . Hover . | . . . . Flight . | . . . . Utility 2 | 1 1 . . Device 1 | . 1 . . Storage 1 | 1 . . . Processor . | . . . . Hackware . | . . . . Protection . | . . . . Artifact . | . . . . Weapon 9 | 1 1 7 . Energy Gun 4 | . 1 3 . Energy Cannon . | . . . . Ballistic Gun 2 | 1 . 1 . Ballistic Cannon . | . . . . Launcher 1 | . . 1 . Special Weapon 1 | . . 1 . Impact Weapon 1 | . . 1 . Slashing Weapon . | . . . . Piercing Weapon . | . . . . Special Melee Weapon . | . . . . Unidentified Prototypes . | . . . . Parts Lost 4 | . . 3 1 Power 1 | . . . 1 Propulsion 1 | . . 1 . Utility . | . . . . Weapon 2 | . . 2 . Highest Loss Streak 2 | . . 2 1 To Critical Strikes . | . . . . Average Slot Usage (%) 98 | . 90 99 89 Engine 13 | . 14 13 4 Leg 3 | . . 2 28 Wheel 24 | . 28 25 . Device 13 | . 4 14 14 Storage 14 | . 14 14 14 Energy Gun 10 | . 14 11 . Ballistic Gun 9 | . 14 10 . Launcher 2 | . . 1 14 Special Weapon 1 | . . 1 . Impact Weapon 3 | . . 2 14 Naked Turns . | . . . . Heaviest Build 14 | 9 11 14 14 Greatest Support 26 | 26 26 26 20 Greatest Overweight (x) 4 | . . 4 . Average Overweight (x) . | . . . . Largest Inventory Capacity 8 | 8 8 8 8 Average Capacity 7 | 7 8 8 8 Most Carried 8 | 7 8 8 8 Average Carried 7 | 4 6 7 7 Final Capacity 8 | 8 8 8 8 Final Carried 8 | 7 8 5 8 Class Distribution -------------------- 100% | Mutant Dominant Class ---------------- Mutant | -10/Materials Mutant | -10/Mines Mutant | -10/Subcaves Resources | -11 -10 -10 -10 ----------- Run | Yrd Mat Min Sub Matter Collected 431 | 197 34 178 22 Remotely . | . . . . Salvage Created 417 | . 34 312 71 Parts 28 | . 4 19 5 Haulers Intercepted . | . . . . Recyclers Shooed . | . . . . Parts Field Recycled . | . . . . Retrieved Matter . | . . . . Parts Self-Destructed . | . . . . Prevented . | . . . . Kills | -11 -10 -10 -10 ------- Run | Yrd Mat Min Sub Combat Hostiles Destroyed 13 | . 1 10 2 Melee 2 | . . 2 . Guns 8 | . 1 7 . Cannons 1 | . . 1 . AOE 2 | . . . 2 Classes Destroyed 5 | . 1 3 1 Swarmer 3 | . . 3 . Grunt 5 | . 1 4 . Sentry 2 | . . 2 . Subdweller 2 | . . . 2 Assembled 1 | . . 1 . Best Kill Streak 2 | . 1 2 1 Combat Bots Only 2 | . 1 2 1 Max Kills in Single Turn 1 | . 1 1 1 Gunslinging . | . . . . Exploded 1 | . . . 1 Melee 1 | . . 1 . Uniques/NPCs Destroyed . | . . . . Combat | -11 -10 -10 -10 -------- Run | Yrd Mat Min Sub Hostile Shots Fired 72 | . 5 51 16 Missed 19 | . 1 13 5 Damage Taken 757 | . 45 459 253 Core 270 | . 22 165 83 Absorbed by Shields . | . . . . Core Remaining (%) 100 | 100 . . . Volleys Fired 37 | . 4 30 3 Largest 2 | . 2 2 1 Hottest 123 | . 60 123 30 Shots Fired 61 | . 8 50 3 Gun 54 | . 8 46 . Cannon . | . . . . Launcher 3 | . . . 3 Special 4 | . . 4 . Kinetic 30 | . 4 26 . Thermal 28 | . 4 24 . Explosive 3 | . . . 3 Electromagnetic . | . . . . Robot Hit Streak 15 | . 2 15 1 Robot Miss Streak 5 | . 5 4 . Penetration Max . | . . . . Secondary Targets 1 | . . 1 . Max Gunslinging Chain 1 | . . 1 . Shots Hit Robots 38 | . 2 33 3 Core Hits 20 | . 2 16 2 Critical Kills . | . . . . Critical Parts Destroyed 1 | . . 1 . Critical Strikes 1 | . . 1 . Smash 1 | . . 1 . Melee Attacks 23 | . . 21 2 Impact 23 | . . 21 2 Slashing . | . . . . Piercing . | . . . . Sneak Attacks . | . . . . Combat Hostiles . | . . . . Follow-up Attacks . | . . . . Damage Inflicted 936 | . 18 475 443 Guns 338 | . 18 320 . Cannons . | . . . . Explosions 389 | . . . 389 Melee 111 | . . 57 54 Ramming 74 | . . 74 . Kinetic 155 | . 8 147 . Thermal 207 | . 10 197 . Explosive 389 | . . . 389 Electromagnetic . | . . . . Impact 111 | . . 57 54 Slashing . | . . . . Piercing . | . . . . Highest Corruption 3 | . . 3 3 Average Corruption 3 | . . 3 3 Corruption Purged . | . . . . Corruption Blocked . | . . . . Effects 6 | . . 2 4 Matter Fused 2 | . . . 2 Heat Flow Errors 3 | . . 1 2 Data Loss (major) 1 | . . 1 . Overload Shots . | . . . . Overflow Damage 16 | . . 16 . Projectiles . | . . . . Explosions . | . . . . Melee 16 | . . 16 . Knockbacks 2 | . . . 2 Impact 2 | . . . 2 Kinetic . | . . . . Secondary . | . . . . Self-Inflicted Damage 52 | . . 29 23 Shots 1 | . . . 1 Rammed 11 | . . 11 . Targets Rammed 12 | . . 12 . Kicked 1 | . . 1 . Crushed . | . . . . Highest Temperature 244 | . 58 184 244 Average Temperature 50 | . 38 42 109 Received Heat Transfer 213 | . 24 147 42 Siege Activations . | . . . . Robots Corrupted . | . . . . Combat Hostiles . | . . . . Parts Fried 2 | . . 2 . Impact Corruptions 1 | . . 1 . Robots Melted . | . . . . Combat Hostiles . | . . . . Parts Melted 1 | . . 1 . Heat Transferred 475 | . 25 450 . Parts Sabotaged . | . . . . Parts Stolen . | . . . . Parts Stripped . | . . . . Power Chain Reactions . | . . . . Alert | -11 -10 -10 -10 ------- Run | Yrd Mat Min Sub Peak Influence 129 | . 20 129 . Initial 7 | . . 7 . Average 50 | . 7 54 . Maximum Alert Level . | . . . . Low Security (%) 100 | 100 100 100 . Level 1 . | . . . . Level 2 . | . . . . Level 3 . | . . . . Level 4 . | . . . . Level 5 . | . . . . High Security . | . . . . Max Security . | . . . . Squads Dispatched 1 | . 1 . . Investigation . | . . . . Extermination . | . . . . Reinforcement 1 | . 1 . . Assault . | . . . . Garrison . | . . . . Intercept . | . . . . Searches Triggered . | . . . . Construction Impeded . | . . . . Haulers Reinforced . | . . . . Active Scanning Responses . | . . . . Cargo Convoy Interrupts . | . . . . Stealth | -11 -10 -10 -10 --------- Run | Yrd Mat Min Sub Distress Signals . | . . . . Communications Jammed . | . . . . Distress Signals . | . . . . Times Spotted 26 | . 1 12 13 Peak Tracking Total 9 | . 1 3 9 Tactical Retreats 1 | . . 1 . Traps | -11 -10 -10 -10 ------- Run | Yrd Mat Min Sub Traps Triggered . | . . . . Indirectly . | . . . . Trap Hack Attempts . | . . . . Triggered . | . . . . Disarmed . | . . . . Reprogrammed . | . . . . Reused . | . . . . Traps Extracted . | . . . . Installed . | . . . . Triggered . | . . . . Machines | -11 -10 -10 -10 ---------- Run | Yrd Mat Min Sub Machines Disabled . | . . . . Max in Single Turn . | . . . . Machines Repaired . | . . . . Machines Dismantled . | . . . . Machines Sabotaged . | . . . . Overloaded Fab Kills . | . . . . Hacking | -11 -10 -10 -10 --------- Run | Yrd Mat Min Sub Machines Accessed . | . . . . Terminals . | . . . . Fabricators . | . . . . Repair Stations . | . . . . Recycling Units . | . . . . Scanalyzers . | . . . . Garrison Access . | . . . . Total Hacks . | . . . . Successful . | . . . . Failed . | . . . . Catastrophic . | . . . . Database Lockouts . | . . . . Manual . | . . . . Terminals . | . . . . Fabricators . | . . . . Repair Stations . | . . . . Recycling Units . | . . . . Scanalyzers . | . . . . Garrison Access . | . . . . Terminal Hacks . | . . . . Fabricator Hacks . | . . . . Repair Station Hacks . | . . . . Recycling Unit Hacks . | . . . . Scanalyzer . | . . . . Garrison Access Hacks . | . . . . Unauthorized Hacks . | . . . . Terminals . | . . . . Fabricators . | . . . . Repair Stations . | . . . . Recycling Units . | . . . . Scanalyzers . | . . . . Garrison Access . | . . . . Data Cores Recovered . | . . . . Used . | . . . . Hacking Detections . | . . . . Full Trace Events . | . . . . Feedback Events . | . . . . Feedback Blocked . | . . . . Robot Schematics Acquired . | . . . . Robots Built . | . . . . Authchips . | . . . . Time . | . . . . Total Robot Build Rating . | . . . . Part Schematics Acquired . | . . . . Parts Built . | . . . . Authchips . | . . . . Time . | . . . . Total Part Build Rating . | . . . . Parts Repaired . | . . . . Time . | . . . . Parts Recycled . | . . . . Recycled Matter . | . . . . Retrieved Matter . | . . . . Retrieved Components . | . . . . Parts Scanalyzed . | . . . . Part Schematics Acquired . | . . . . Parts Damaged . | . . . . Bothacking | -11 -10 -10 -10 ------------ Run | Yrd Mat Min Sub Used RIF Installer . | . . . . Robots Hacked . | . . . . Non-combat . | . . . . Combat . | . . . . Robot Hacks Applied . | . . . . Relay Couplers Released . | . . . . Fabnet Peak Effective % . | . . . . Robots Rewired . | . . . . Allies Hacked . | . . . . Hacks Repelled . | . . . . Allies | -11 -10 -10 -10 -------- Run | Yrd Mat Min Sub Total Allies 3 | . . 3 . Largest Group 2 | . . 2 2 Highest-Rated Group 41 | . . 41 41 Highest-Rated Ally 31 | . . 31 31 Total Orders . | . . . . Ally Attacks 16 | . . 9 7 Total Damage 296 | . . 191 105 Kills 3 | . . 2 1 Allies Corrupted . | . . . . Allies Melted . | . . . . Intel | -11 -10 -10 -10 ------- Run | Yrd Mat Min Sub Robot Analysis Total . | . . . . Derelict Logs Recovered 2 | . . 2 . Drone Launches . | . . . . Drone Recoveries . | . . . . Exploration | -11 -10 -10 -10 ------------- Run | Yrd Mat Min Sub Turns Passed 1436 | 63 57 1212 104 Spaces Moved 1131 | 55 46 960 70 Core 13 | 11 . 2 . Treads . | . . . . Legs 106 | . . 36 70 Wheels 1012 | 44 46 922 . Hover . | . . . . Flight . | . . . . Fastest Speed 50 | 50 90 90 120 Average Speed 92 | 85 90 91 120 Slowest Speed 250 | 100 90 250 120 Overloaded Moves . | . . . . Propulsion Burnouts . | . . . . Robots Hopped . | . . . . Cave-ins Triggered . | . . . . Exploration Rate (%) 30 | 3 15 98 7 Regions Visited 3 Branch Regions 2 Pre-discovered Areas . | . . . . Known Exits Taken . | . . . . Unknown Exits Taken 3 | 1 1 1 . Scrap Searched 3 | . . 3 . Spaces Dug . | . . . . Terrain Destroyed 23 | . . 3 20 Melee . | . . . . Projectile 3 | . . 3 . AOE 20 | . . . 20 Terrain Rammed . | . . . . Walls Destroyed . | . . . . Machines Disabled . | . . . . Actions | -11 -10 -10 -10 --------- Run | Yrd Mat Min Sub Total 1415 | 71 54 1207 83 Wait 148 | . . 142 6 Move 1128 | 54 45 959 70 Hop . | . . . . Pick Up 33 | 12 3 16 2 Fast Attach . | . . . . Attach 17 | 5 2 10 . Detach 1 | . . 1 . Swap . | . . . . Drop 16 | . . 16 . Fire 37 | . 4 30 3 Melee 23 | . . 21 2 Ram 11 | . . 11 . Kick 1 | . . 1 . Crush . | . . . . Escape Stasis . | . . . . Rewire . | . . . . Trap . | . . . . Miscellaneous . | . . . . Route ------- -11/Scrapyard -10/Materials (discovered 2 exits: [*Mat] / [*Min]) -10/Mines (discovered 3 exits: [*Mat x2] / [*Sub]) -10/Subcaves History --------- Turn | Location | Event 2 | -11/Scrapyard | Met Revision 17 24 | -11/Scrapyard | Discovered new exit (range 15) 64 | -11/Scrapyard | Entered Materials 108 | -10/Materials | Discovered new exit (range 14) 109 | -10/Materials | Discovered new exit (range 11) 121 | -10/Materials | Entered Mines 133 | -10/Mines | Learned location of 1 exit from Materials 306 | -10/Mines | Build established: Mutant 315 | -10/Mines | Discovered new exit (range 10) 322 | -10/Mines | Received a Mining Laser from a helpful Derelict 392 | -10/Mines | Learned Materials stockpile data 576 | -10/Mines | Discovered new exit (range 9) 589 | -10/Mines | Core integrity fell below 50% 675 | -10/Mines | Discovered new exit (range 8) 1081 | -10/Mines | Excavation squad dispatched 1081 | -10/Mines | A large section of the Mines collapsed 1333 | -10/Mines | Entered Subcaves 1333 | -10/Subcaves | Accompanied by 2 allies 1338 | -10/Subcaves | Led the pair of lost Derelicts to an unsafe place 1431 | -10/Subcaves | Ambushed by swarm of Subdwellers 1433 | -10/Subcaves | Ambushed by Subdwellers from Twisted Machinery 1433 | -10/Subcaves | Ambushed by Subdwellers from Twisted Machinery 1433 | -10/Subcaves | Ambushed by Subdwellers from Twisted Machinery 1434 | -10/Subcaves | Core integrity fell below 20% 1437 | -10/Subcaves | Destroyed by R2-C1M(R) with Subdweller Beam Cannon Last Messages --------------- A mess of Twisted Machinery falls from the cavern ceiling. WL-JHD(R) comes tumbling into view. 01431_ HS-LGG(h): "The Subs are coming!" 01431_ HV Slug penetrates WL-JHD(R). 01431_ WL-JHD(R) suffers critical hit (Destroy). 01431_ WL-JHD(R) destroyed. 01432_ YQ-I81(g): "Sorry we're late! Had another grouchy Sub to deal with. Who's the new fellow?" 01433_ BD-WT2(R) emerges from the Twisted Machinery. 01433_ 45-M59(R) emerges from the Twisted Machinery. 01433_ F8-J8E(R) emerges from the Twisted Machinery. 01433_ 0I-FQX(R) angrily emerges from the Twisted Machinery. 01433_ 4I-POM(R) angrily emerges from the Twisted Machinery. 01433_ ZE-HXS(R) angrily emerges from the Twisted Machinery. 01433_ CC-DIT(u) tweaks Twisted Machinery. 01435_ CC-DIT(u) builds Twisted Machinery. 01435_ HV Slug penetrates 45-M59(R). 01435_ 45-M59(R) destroyed. 01435_ Q0-FG3(R) suffers critical hit (Destroy). 01435_ Q0-FG3(R) destroyed. Map ----- +----------------------------------------------------+ | | | | | ?????????????????????????????????????????????????? | | ?????????????????????????????????????????????????? | | ?????????????????????????????????????????????????? | | ?????????????????????????????????????????????????? | | ?????????????????????????????????????????????????? | | ?????????????????????????????????????????????????? | | ?????????????????????????????????????????????????? | | ?????????????????????????????????????????????????? | | ?????????????????????????????????????????????????? | | ?????????????????????????????????????????????????? | | ?????????????????????????????????????????????????? | | ?????????????????????????????????????????????????? | | ?????????????????????????????????????????????????? | | ????????????????????????#####????????????????????? | | ???????????????????????########??????????????????? | | ???????????????????????### #####?????????????????? | | ???????????????????????# #!" ###???## ???????????? | | ??????????????????????###[%"" ##???## "" ??????### | | ??????????????????????###RR R ####?## "## ??###### | | ??????????????????????##%*!= ########"########## | | ??????????????????????###R%RRR ######" ###### | | ???????????????? ?#### !& ## "" ### | | ????????????????## ### """"""""""" | | ????????????????## @ "u"" " | | ???????????????### h gg " ## | | ???????????????## ###### g #### | | ???????????????## ########## ######## | | ???????????????### ##### ######### | | ???????????????## ???### ###????### | | ???????????????###????## ##????### | | ???????????????## ????### ##?????## | | ??????????????????????#### #### ## ##?????## | | ???????????????????????####################?????## | | ????????????????????????########?##########??????? | | ?????????????????????????????????????????????????? | | ?????????????????????????????????????????????????? | | ?????????????????????????????????????????????????? | | ?????????????????????????????????????????????????? | | ?????????????????????????????????????????????????? | | ?????????????????????????????????????????????????? | | ?????????????????????????????????????????????????? | | ?????????????????????????????????????????????????? | | ?????????????????????????????????????????????????? | | ?????????????????????????????????????????????????? | | ?????????????????????????????????????????????????? | | ?????????????????????????????????????????????????? | | ?????????????????????????????????????????????????? | | ?????????????????????????????????????????????????? | +----------------------------------------------------+ Best States ------------- Heat Dissipation 25 Energy Generation 10 Energy Capacity 125 Matter Stores 300 Matter Capacity 300 Sight Range 16 Terrain Scan Density 10 Evasion (%) 55 Item Schematics ----------------- None Robot Schematics ------------------ None Fabricated ------------ Nothing Alien Tech Used ----------------- None Achievements -------------- None Challenges ------------ None Game ------ Seed BeamLinkedAutocannon Manual? 0 Play Time 00:32:15 Cumulative 7.4 hours Start 2024.06.12 @ 21:55:32 End 2024.06.14 @ 02:44:18 Sessions 6 Manual Loads 0 Difficulty Rogue Special Mode None Game No. 10 Rogue 10 Adventurer 0 Explorer 0 Win Type - Total 0 Types 0/0/0/0/0/0/0/0/0 Lore% 4 Gallery% 9 Achievement% 9 Wizard Run 0 Options --------- Layout 0 ASCII 0 Keyboard 0 Movement Mouse Keybinds 0 Fullscreen 2 Font 18/TerminusBold Map View 38x25 Zoom Use 75% Tactical HUD 1 Map Filters NONE Filters NONE Steam 1 RUN: f03c4801-8ffe-4074-b73e-244d015f55c8